fUST/lending_fUST_20250210
["ID","MTS","AMOUNT","RATE_DAILY","PERIOD"]
[352564290,1739170246574,-500.0,0.00012328,2]
[352564291,1739170246583,-500.0,0.00012328,2]
[352564292,1739170246597,-500.0,0.00012328,2]
[352564293,1739170246620,-500.0,0.00012328,2]
[352564294,1739170246665,-524.81,0.00012328,2]
[352564295,1739170246742,-500.0,0.00012328,2]
[352564296,1739170246860,-574.4945936,0.00012328,2]
[352564297,1739170246955,-669.47,0.00012328,2]
[352564298,1739170247078,-1267.99,0.00012328,2]
[352564299,1739170247175,-1598.9,0.00012328,2]
[352564300,1739170247250,-755.08,0.00012328,2]
[352564301,1739170247378,-5415.67,0.00012328,2]
[352564302,1739170247495,-500.0,0.00012328,2]
[352564303,1739170247604,-500.0,0.00012328,2]
[352564304,1739170247712,-188.55,0.00012328,2]
[352564305,1739170247766,-644.14,0.00012328,2]
[352564306,1739170247779,-500.0,0.00012328,2]
[352564307,1739170247789,-500.0,0.00012328,2]
[352564308,1739170247799,-886.77,0.00012328,2]
[352564309,1739170247809,-11218.02,0.00012328,2]
[352564310,1739170247818,-7404.08,0.00012328,2]
[352564311,1739170247828,-500.0,0.00012328,2]
[352564312,1739170247838,-500.0,0.00012328,2]
[352564313,1739170247850,-500.0,0.00012328,2]
[352564314,1739170247859,-500.0,0.00012328,2]
[352564315,1739170247869,-892.13,0.00012328,2]
[352564316,1739170247879,-500.0,0.00012328,2]
[352564317,1739170247888,-529.56,0.00012328,2]
[352564318,1739170247897,-500.0,0.00012328,2]
[352564319,1739170247907,-500.0,0.00012328,2]
[352564320,1739170247917,-361.66,0.00012328,2]
[352564321,1739170247926,-1011.57,0.00012328,2]
[352564322,1739170247936,-500.0,0.00012328,2]
[352564323,1739170247945,-500.0,0.00012328,2]
[352564324,1739170247955,-500.0,0.00012328,2]
[352564325,1739170247964,-1102.03,0.00012328,2]
[352564326,1739170247973,-500.0,0.00012328,2]
[352564327,1739170247983,-2698.32,0.00012328,2]
[352564328,1739170247992,-1269.95,0.00012328,2]
[352564329,1739170248001,-500.0,0.00012328,2]
[352564330,1739170248011,-1453.1,0.00012328,2]
[352564331,1739170248021,-1048.08,0.00012328,2]
[352564332,1739170248031,-500.0,0.00012465,2]
[352564333,1739170248041,-500.0,0.00012465,2]
[352564334,1739170248051,-487.38,0.00012465,2]
[352564335,1739170248060,-500.0,0.00012465,2]
[352564336,1739170248070,-524.81,0.00012465,2]
[352564337,1739170248079,-500.0,0.00012465,2]
[352564338,1739170248089,-669.47,0.00012465,2]
[352564339,1739170248099,-1267.99,0.00012465,2]
[352564340,1739170248108,-1598.9,0.00012465,2]
[352564341,1739170248118,-755.08,0.00012465,2]
[352564342,1739170248127,-5415.67,0.00012465,2]
[352564343,1739170248136,-500.0,0.00012465,2]
[352564344,1739170248147,-500.0,0.00012465,2]
[352564345,1739170248156,-644.14,0.00012465,2]
[352564346,1739170248166,-528.91,0.00012465,2]
[352564347,1739170248177,-500.0,0.00012465,2]
[352564348,1739170248187,-886.77,0.00012465,2]
[352564349,1739170248196,-11218.02,0.00012465,2]
[352564350,1739170248206,-7404.08,0.00012465,2]
[352564351,1739170248216,-500.0,0.00012465,2]
[352564352,1739170248226,-167.2,0.00012465,2]
[352564353,1739170248236,-500.0,0.00012465,2]
[352564354,1739170248249,-500.0,0.00012465,2]
[352564355,1739170248258,-892.13,0.00012465,2]
[352564356,1739170248267,-500.0,0.00012465,2]
[352564357,1739170248277,-529.56,0.00012465,2]
[352564358,1739170248287,-500.0,0.00012465,2]
[352564359,1739170248305,-271.24,0.00012465,2]
[352564360,1739170248316,-1011.57,0.00012465,2]
[352564361,1739170248328,-500.0,0.00012465,2]
[352564362,1739170248338,-500.0,0.00012465,2]
[352564363,1739170248351,-500.0,0.00012465,2]
[352564364,1739170248361,-1102.03,0.00012465,2]
[352564365,1739170248372,-500.0,0.00012465,2]
[352564366,1739170248382,-2698.32,0.00012465,2]
[352564367,1739170248392,-1269.95,0.00012465,2]
[352564368,1739170248402,-500.0,0.00012465,2]
[352564369,1739170248412,-1453.1,0.00012465,2]
[352564370,1739170248422,-1048.08,0.00012465,2]
[352564371,1739170248431,-500.0,0.00012602,2]
[352564372,1739170248441,-500.0,0.00012602,2]
[352564373,1739170248451,-500.0,0.00012602,2]
[352564374,1739170248462,-524.81,0.00012602,2]
[352564375,1739170248472,-500.0,0.00012602,2]
[352564376,1739170248483,-669.47,0.00012602,2]
[352564377,1739170248493,-1267.99,0.00012602,2]
[352564378,1739170248503,-1598.9,0.00012602,2]
[352564379,1739170248514,-755.08,0.00012602,2]
[352564380,1739170248523,-5415.67,0.00012602,2]
[352564381,1739170248534,-279.1,0.00012602,2]
[352564382,1739170248544,-500.0,0.00012602,2]
[352564383,1739170248554,-644.14,0.00012602,2]
[352564384,1739170248564,-500.0,0.00012602,2]
[352564385,1739170248574,-886.77,0.00012602,2]
[352564386,1739170248584,-11218.02,0.00012602,2]
[352564387,1739170248711,-7404.08,0.00012602,2]
[352564388,1739170248722,-500.0,0.00012602,2]
[352564389,1739170248733,-500.0,0.00012602,2]
[352564390,1739170248743,-500.0,0.00012602,2]
[352564391,1739170248753,-892.13,0.00012602,2]
[352564392,1739170248763,-500.0,0.00012602,2]
[352564393,1739170248774,-529.56,0.00012602,2]
[352564394,1739170248784,-500.0,0.00012602,2]
[352564395,1739170248795,-1011.57,0.00012602,2]
[352564396,1739170248804,-500.0,0.00012602,2]
[352564397,1739170248814,-500.0,0.00012602,2]
[352564398,1739170248824,-500.0,0.00012602,2]
[352564399,1739170248835,-1102.03,0.00012602,2]
[352564400,1739170248847,-500.0,0.00012602,2]
[352564401,1739170248857,-2698.32,0.00012602,2]
[352564402,1739170248867,-1269.95,0.00012602,2]
[352564403,1739170248878,-500.0,0.00012602,2]
[352564404,1739170248888,-1453.1,0.00012602,2]
[352564405,1739170248899,-1048.08,0.00012602,2]
[352564406,1739170248908,-228.25035717,0.00012611,2]
[352564407,1739170248919,-500.0,0.00012739,2]
[352564408,1739170248929,-500.0,0.00012739,2]
[352564409,1739170248940,-500.0,0.00012739,2]
[352564410,1739170248951,-524.81,0.00012739,2]
[352564411,1739170248963,-500.0,0.00012739,2]
[352564412,1739170248975,-669.47,0.00012739,2]
[352564413,1739170248986,-1267.99,0.00012739,2]
[352564414,1739170248998,-1598.9,0.00012739,2]
[352564415,1739170249009,-755.08,0.00012739,2]
[352564416,1739170249020,-5415.67,0.00012739,2]
[352564417,1739170249032,-500.0,0.00012739,2]
[352564418,1739170249043,-644.14,0.00012739,2]
[352564419,1739170249054,-500.0,0.00012739,2]
[352564420,1739170249066,-886.77,0.00012739,2]
[352564421,1739170249076,-11218.02,0.00012739,2]
[352564422,1739170249088,-7404.08,0.00012739,2]
[352564423,1739170249105,-500.0,0.00012739,2]
[352564424,1739170249116,-500.0,0.00012739,2]
[352564425,1739170249126,-500.0,0.00012739,2]
[352564426,1739170249137,-892.13,0.00012739,2]
[352564427,1739170249148,-500.0,0.00012739,2]
[352564428,1739170249159,-529.56,0.00012739,2]
[352564429,1739170249171,-500.0,0.00012739,2]
[352564430,1739170249182,-1011.57,0.00012739,2]
[352564431,1739170249193,-500.0,0.00012739,2]
[352564432,1739170249203,-500.0,0.00012739,2]
[352564433,1739170249215,-500.0,0.00012739,2]
[352564434,1739170249226,-1102.03,0.00012739,2]
[352564435,1739170249240,-500.0,0.00012739,2]
[352564436,1739170249262,-2698.32,0.00012739,2]
[352564437,1739170249278,-1269.95,0.00012739,2]
[352564438,1739170249288,-500.0,0.00012739,2]
[352564439,1739170249298,-1453.1,0.00012739,2]
[352564440,1739170249308,-1048.08,0.00012739,2]
[352564441,1739170249319,-151.0,0.000128,2]
[352564442,1739170249329,-13267.29691025,0.00012807,2]
[352564443,1739170249340,-500.0,0.00012876,2]
[352564444,1739170249358,-500.0,0.00012876,2]
[352564445,1739170249368,-500.0,0.00012876,2]
[352564446,1739170249379,-524.81,0.00012876,2]
[352564447,1739170249390,-551.15,0.00012876,2]
[352564448,1739170249402,-669.47,0.00012876,2]
[352564449,1739170249412,-1267.99,0.00012876,2]
[352564450,1739170249423,-1598.9,0.00012876,2]
[352564451,1739170249435,-755.08,0.00012876,2]
[352564452,1739170249446,-5415.67,0.00012876,2]
[352564453,1739170249456,-500.0,0.00012876,2]
[352564454,1739170249468,-644.14,0.00012876,2]
[352564455,1739170249479,-500.0,0.00012876,2]
[352564456,1739170249490,-886.77,0.00012876,2]
[352564457,1739170249501,-11218.02,0.00012876,2]
[352564458,1739170249511,-7404.08,0.00012876,2]
[352564459,1739170249522,-500.0,0.00012876,2]
[352564460,1739170249534,-588.44,0.00012876,2]
[352564461,1739170249545,-500.0,0.00012876,2]
[352564462,1739170249556,-892.13,0.00012876,2]
[352564463,1739170249567,-500.0,0.00012876,2]
[352564464,1739170249578,-529.56,0.00012876,2]
[352564465,1739170249589,-500.0,0.00012876,2]
[352564466,1739170249604,-1011.57,0.00012876,2]
[352564467,1739170249614,-500.0,0.00012876,2]
[352564468,1739170249625,-500.0,0.00012876,2]
[352564469,1739170249636,-500.0,0.00012876,2]
[352564470,1739170249647,-1102.03,0.00012876,2]
[352564471,1739170249659,-500.0,0.00012876,2]
[352564472,1739170249670,-2698.32,0.00012876,2]
[352564473,1739170249681,-1269.95,0.00012876,2]
[352564474,1739170249691,-336.63312328,0.00012876,2]
[352564475,1739170249700,-1453.1,0.00012876,2]
[352564476,1739170249710,-1048.08,0.00012876,2]
[352564477,1739170249720,-7438.69753278,0.00013,2]
[352564478,1739170249732,-500.0,0.00013013,2]
[352564479,1739170249743,-425.88,0.00013013,2]
[352564480,1739170249752,-500.0,0.00013013,2]
[352564481,1739170249763,-524.81,0.00013013,2]
[352564482,1739170249772,-669.47,0.00013013,2]
[352564483,1739170249783,-1267.99,0.00013013,2]
[352564484,1739170249795,-1598.9,0.00013013,2]
[352564485,1739170249807,-755.08,0.00013013,2]
[352564486,1739170249817,-5415.67,0.00013013,2]
[352564487,1739170249828,-500.0,0.00013013,2]
[352564488,1739170249839,-644.14,0.00013013,2]
[352564489,1739170249855,-500.0,0.00013013,2]
[352564490,1739170249866,-886.77,0.00013013,2]
[352564491,1739170249878,-11218.02,0.00013013,2]
[352564492,1739170249891,-7404.08,0.00013013,2]
[352564493,1739170249903,-500.0,0.00013013,2]
[352564494,1739170249915,-500.0,0.00013013,2]
[352564495,1739170249927,-892.13,0.00013013,2]
[352564496,1739170249939,-500.0,0.00013013,2]
[352564497,1739170249950,-529.56,0.00013013,2]
[352564498,1739170249959,-500.0,0.00013013,2]
[352564499,1739170249971,-1011.57,0.00013013,2]
[352564500,1739170249981,-500.0,0.00013013,2]
[352564501,1739170249991,-151.0,0.00013013,2]
[352564502,1739170250001,-500.0,0.00013013,2]
[352564503,1739170250012,-151.0,0.00013013,2]
[352564504,1739170250022,-500.0,0.00013013,2]
[352564505,1739170250033,-151.0,0.00013013,2]
[352564506,1739170250043,-1102.03,0.00013013,2]
[352564507,1739170250053,-151.0,0.00013013,2]
[352564508,1739170250063,-500.0,0.00013013,2]
[352564509,1739170250072,-151.0,0.00013013,2]
[352564510,1739170250081,-2698.32,0.00013013,2]
[352564511,1739170250091,-1269.95,0.00013013,2]
[352564512,1739170250103,-151.0,0.00013013,2]
[352564513,1739170250113,-151.0,0.00013013,2]
[352564514,1739170250123,-151.0,0.00013013,2]
[352564515,1739170250133,-1453.1,0.00013013,2]
[352564516,1739170250143,-151.0,0.00013013,2]
[352564517,1739170250152,-1048.08,0.00013013,2]
[352564518,1739170250162,-151.0,0.000131,2]
[352564519,1739170250172,-500.0,0.0001315,2]
[352564520,1739170250182,-607.16,0.0001315,2]
[352564521,1739170250191,-524.81,0.0001315,2]
[352564522,1739170250201,-669.47,0.0001315,2]
[352564523,1739170250210,-1267.99,0.0001315,2]
[352564524,1739170250219,-1598.9,0.0001315,2]
[352564525,1739170250229,-151.0,0.0001315,2]
[352564526,1739170250240,-755.08,0.0001315,2]
[352564527,1739170250251,-5415.67,0.0001315,2]
[352564528,1739170250261,-337.0,0.0001315,2]
[352564529,1739170250271,-644.14,0.0001315,2]
[352564530,1739170250280,-888.803566,0.0001315,2]
[352564531,1739170250291,-888.803566,0.0001315,2]
[352564532,1739170250301,-500.0,0.0001315,2]
[352564533,1739170250311,-886.77,0.0001315,2]
[352564534,1739170250322,-7692.7204203,0.0001315,2]
[352564535,1739170250419,-3525.2995797,0.0001315,2]
[352564536,1739170250429,-7404.08,0.0001315,2]
[352564537,1739170250439,-500.0,0.0001315,2]
[352564538,1739170250449,-500.0,0.0001315,2]
[352564539,1739170250458,-892.13,0.0001315,2]
[352564540,1739170250468,-500.0,0.0001315,2]
[352564541,1739170250477,-529.56,0.0001315,2]
[352564542,1739170250487,-500.0,0.0001315,2]
[352564543,1739170250497,-290.984725,0.0001315,2]
[352564544,1739170250507,-290.984725,0.0001315,2]
[352564545,1739170250517,-1011.57,0.0001315,2]
[352564546,1739170250527,-151.107428,0.0001315,2]
[352564547,1739170250536,-623.18,0.0001315,2]
[352564548,1739170250546,-500.0,0.0001315,2]
[352564549,1739170250556,-500.0,0.0001315,2]
[352564550,1739170250566,-1102.03,0.0001315,2]
[352564551,1739170250576,-500.0,0.0001315,2]
[352564552,1739170250586,-2698.32,0.0001315,2]
[352564553,1739170250598,-1269.95,0.0001315,2]
[352564554,1739170250607,-1453.1,0.0001315,2]
[352564555,1739170250616,-1048.08,0.0001315,2]
[352564556,1739170250626,-500.0,0.00013287,2]
[352564557,1739170250636,-524.81,0.00013287,2]
[352564558,1739170250646,-669.47,0.00013287,2]
[352564559,1739170250656,-212.874582,0.00013287,2]
[352564560,1739170250666,-1267.99,0.00013287,2]
[352564561,1739170250675,-1598.9,0.00013287,2]
[352564562,1739170250685,-151.0,0.00013287,2]
[352564563,1739170250695,-755.08,0.00013287,2]
[352564564,1739170250704,-5415.67,0.00013287,2]
[352564565,1739170250714,-644.14,0.00013287,2]
[352564566,1739170250724,-500.0,0.00013287,2]
[352564567,1739170250733,-886.77,0.00013287,2]
[352564568,1739170250743,-11218.02,0.00013287,2]
[352564569,1739170250752,-7404.08,0.00013287,2]
[352564570,1739170250762,-151.0,0.00013287,2]
[352564571,1739170250771,-500.0,0.00013287,2]
[352564572,1739170250780,-500.0,0.00013287,2]
[352564573,1739170250797,-892.13,0.00013287,2]
[352564574,1739170250813,-500.0,0.00013287,2]
[352564575,1739170250823,-529.56,0.00013287,2]
[352564576,1739170250832,-622.99,0.00013287,2]
[352564577,1739170250842,-1011.57,0.00013287,2]
[352564578,1739170250881,-500.0,0.00013287,2]
[352564579,1739170250891,-500.0,0.00013287,2]
[352564580,1739170250900,-1102.03,0.00013287,2]
[352564581,1739170250910,-500.0,0.00013287,2]
[352564582,1739170250920,-2698.32,0.00013287,2]
[352564583,1739170250931,-1269.95,0.00013287,2]
[352564584,1739170250939,-1453.1,0.00013287,2]
[352564585,1739170250949,-1048.08,0.00013287,2]
[352564586,1739170250959,-500.0,0.00013385,2]
[352564587,1739170250968,-500.0,0.00013424,2]
[352564588,1739170250978,-524.81,0.00013424,2]
[352564589,1739170250987,-669.47,0.00013424,2]
[352564590,1739170250996,-151.0,0.00013424,2]
[352564591,1739170251006,-332.739286,0.00013424,2]
[352564592,1739170251015,-332.739286,0.00013424,2]
[352564593,1739170251024,-151.0,0.00013424,2]
[352564594,1739170251034,-151.0,0.00013424,2]
[352564595,1739170251043,-1267.99,0.00013424,2]
[352564596,1739170251052,-1598.9,0.00013424,2]
[352564597,1739170251062,-152.194097,0.00013424,2]
[352564598,1739170251072,-755.08,0.00013424,2]
[352564599,1739170251081,-5415.67,0.00013424,2]
[352564600,1739170251091,-644.14,0.00013424,2]
[352564601,1739170251104,-500.0,0.00013424,2]
[352564602,1739170251114,-886.77,0.00013424,2]
[352564603,1739170251123,-11218.02,0.00013424,2]
[352564604,1739170251132,-7404.08,0.00013424,2]
[352564605,1739170251141,-500.0,0.00013424,2]
[352564606,1739170251151,-202.70111763,0.00013424,2]
[352564607,1739170251160,-892.13,0.00013424,2]
[352564608,1739170251170,-358.85,0.00013424,2]
[352564609,1739170251179,-529.56,0.00013424,2]
[352564610,1739170251211,-1011.57,0.00013424,2]
[352564611,1739170251220,-500.0,0.00013424,2]
[352564612,1739170251230,-500.0,0.00013424,2]
[352564613,1739170251240,-1102.03,0.00013424,2]
[352564614,1739170251253,-420.12,0.00013424,2]
[352564615,1739170251263,-2698.32,0.00013424,2]
[352564616,1739170251272,-1269.95,0.00013424,2]
[352564617,1739170251281,-1453.1,0.00013424,2]
[352564618,1739170251290,-1048.08,0.00013424,2]
[352564619,1739170251300,-500.0,0.00013561,2]
[352564620,1739170251309,-524.81,0.00013561,2]
[352564621,1739170251318,-151.0,0.00013561,2]
[352564622,1739170251328,-151.0,0.00013561,2]
[352564623,1739170251338,-669.47,0.00013561,2]
[352564624,1739170251349,-151.456261,0.00013561,2]
[352564625,1739170251359,-452.678732,0.00013561,2]
[352564626,1739170251368,-452.678732,0.00013561,2]
[352564627,1739170251378,-1267.99,0.00013561,2]
[352564628,1739170251388,-1598.9,0.00013561,2]
[352564629,1739170251398,-755.08,0.00013561,2]
[352564630,1739170251407,-5415.67,0.00013561,2]
[352564631,1739170251418,-644.14,0.00013561,2]
[352564632,1739170251427,-500.0,0.00013561,2]
[352564633,1739170251437,-886.77,0.00013561,2]
[352564634,1739170251447,-11218.02,0.00013561,2]
[352564635,1739170251456,-7404.08,0.00013561,2]
[352564636,1739170251466,-500.0,0.00013561,2]
[352564637,1739170251476,-892.13,0.00013561,2]
[352564638,1739170251485,-529.56,0.00013561,2]
[352564639,1739170251495,-1011.57,0.00013561,2]
[352564640,1739170251504,-500.0,0.00013561,2]
[352564641,1739170251513,-500.0,0.00013561,2]
[352564642,1739170251523,-1102.03,0.00013561,2]
[352564643,1739170251532,-2698.32,0.00013561,2]
[352564644,1739170251541,-1269.95,0.00013561,2]
[352564645,1739170251551,-1453.1,0.00013561,2]
[352564646,1739170251560,-1048.08,0.00013561,2]
[352564647,1739170251569,-196.37268639,0.00013599,2]
[352564648,1739170251578,-501.6191126,0.00013698,14]
[352564649,1739170251587,-487.01,0.00013698,2]
[352564650,1739170251601,-500.23501456,0.00013698,2]
[352564651,1739170251610,-151.0,0.00013698,2]
[352564652,1739170251618,-524.81,0.00013698,2]
[352564653,1739170251628,-200.752705,0.00013698,2]
[352564654,1739170251638,-151.0,0.00013698,2]
[352564655,1739170251649,-151.0,0.00013698,2]
[352564656,1739170251658,-669.47,0.00013698,2]
[352564657,1739170251668,-1267.99,0.00013698,2]
[352564658,1739170251677,-1598.9,0.00013698,2]
[352564659,1739170251686,-755.08,0.00013698,2]
[352564660,1739170251695,-5415.67,0.00013698,2]
[352564661,1739170251704,-644.14,0.00013698,2]
[352564662,1739170251714,-500.0,0.00013698,2]
[352564663,1739170251724,-886.77,0.00013698,2]
[352564664,1739170251733,-11218.02,0.00013698,2]
[352564665,1739170251743,-7404.08,0.00013698,2]
[352564666,1739170251753,-500.0,0.00013698,2]
[352564667,1739170251763,-892.13,0.00013698,2]
[352564668,1739170251772,-529.56,0.00013698,2]
[352564669,1739170251781,-1011.57,0.00013698,2]
[352564670,1739170251791,-255.2,0.00013698,2]
[352564671,1739170251800,-500.0,0.00013698,2]
[352564672,1739170251810,-1102.03,0.00013698,2]
[352564673,1739170251819,-2698.32,0.00013698,2]
[352564674,1739170251829,-1269.95,0.00013698,2]
[352564675,1739170251839,-1453.1,0.00013698,2]
[352564676,1739170251854,-1048.08,0.00013698,2]
[352564677,1739170251863,-1373.699141,0.00013699,2]
[352564678,1739170251872,-2559.959587,0.00013699,2]
[352564679,1739170251882,-205.7082591,0.00013699,2]
[352564680,1739170251891,-2802.7050222,0.00013699,2]
[352564681,1739170251901,-500.0,0.00013699,2]
[352564682,1739170251911,-523.13032133,0.00013699,2]
[352564683,1739170251922,-500.01010926,0.00013699,2]
[352564684,1739170251931,-1345.69945727,0.00013699,2]
[352564685,1739170251941,-500.0,0.00013699,2]
[352564686,1739170251951,-1345.69945727,0.00013699,2]
[352564687,1739170251960,-1345.69945727,0.00013699,2]
[352564688,1739170251970,-213.55391939,0.00013699,2]
[352564689,1739170251980,-1345.69945727,0.00013699,2]
[352564690,1739170251990,-1345.69945727,0.00013699,2]
[352564691,1739170251999,-1345.69945727,0.00013699,2]
[352564692,1739170252009,-1345.69945727,0.00013699,2]
[352564693,1739170252018,-1345.69945727,0.00013699,2]
[352564694,1739170252029,-1345.69945727,0.00013699,2]
[352564695,1739170252038,-1345.69945727,0.00013699,2]
[352564696,1739170252048,-1345.69945727,0.00013699,2]
[352564697,1739170252057,-1345.69945727,0.00013699,2]
[352564698,1739170252067,-1345.69945727,0.00013699,2]
[352564699,1739170252076,-1345.69945727,0.00013699,2]
[352564700,1739170252086,-1345.69945727,0.00013699,2]
[352564701,1739170252095,-1345.69945727,0.00013699,2]
[352564702,1739170252110,-1345.69945727,0.00013699,2]
[352564703,1739170252119,-1345.69945727,0.00013699,2]
[352564704,1739170252129,-1345.69945727,0.00013699,2]
[352564705,1739170252138,-1345.69945727,0.00013699,2]
[352564706,1739170252147,-1345.69945727,0.00013699,2]
[352564707,1739170252157,-1345.69945727,0.00013699,2]
[352564708,1739170252171,-1345.69945727,0.00013699,2]
[352564709,1739170252180,-1345.69945727,0.00013699,2]
[352564710,1739170252190,-1345.69945727,0.00013699,2]
[352564711,1739170252200,-1345.69945727,0.00013699,2]
[352564712,1739170252209,-1345.69945727,0.00013699,2]
[352564713,1739170252219,-1345.69945727,0.00013699,2]
[352564714,1739170252228,-1345.69945727,0.00013699,2]
[352564715,1739170252239,-1345.69945727,0.00013699,2]
[352564716,1739170252252,-1345.69945727,0.00013699,2]
[352564717,1739170252261,-1345.69945727,0.00013699,2]
[352564718,1739170252271,-1345.69945727,0.00013699,2]
[352564719,1739170252283,-1345.69945727,0.00013699,2]
[352564720,1739170252297,-1345.69945727,0.00013699,2]
[352564721,1739170252306,-1345.69945727,0.00013699,2]
[352564722,1739170252315,-1345.69945727,0.00013699,2]
[352564723,1739170252326,-1345.69945727,0.00013699,2]
[352564724,1739170252335,-1345.69945727,0.00013699,2]
[352564725,1739170252346,-1345.69945727,0.00013699,2]
[352564726,1739170252360,-1345.69945727,0.00013699,2]
[352564727,1739170252369,-1345.69945727,0.00013699,2]
[352564728,1739170252379,-1345.69945727,0.00013699,2]
[352564729,1739170252388,-1345.69945727,0.00013699,2]
[352564730,1739170252397,-1345.69945727,0.00013699,2]
[352564731,1739170252407,-1345.69945727,0.00013699,2]
[352564732,1739170252416,-1345.69945727,0.00013699,2]
[352564733,1739170252425,-1345.69945727,0.00013699,2]
[352564734,1739170252434,-1345.69945727,0.00013699,2]
[352564735,1739170252444,-1345.69945727,0.00013699,2]
[352564736,1739170252453,-1345.69945727,0.00013699,2]
[352564737,1739170252463,-1345.69945727,0.00013699,2]
[352564738,1739170252472,-1345.69945727,0.00013699,2]
[352564739,1739170252481,-1345.69945727,0.00013699,2]
[352564740,1739170252491,-1345.69945727,0.00013699,2]
[352564741,1739170252500,-1345.69945727,0.00013699,2]
[352564742,1739170252509,-1345.69945727,0.00013699,2]
[352564743,1739170252519,-1345.69945727,0.00013699,2]
[352564744,1739170252528,-1332.2424627,0.00013699,2]
[352564745,1739170252538,-1332.2424627,0.00013699,2]
[352564746,1739170252547,-1332.2424627,0.00013699,2]
[352564747,1739170252556,-1332.2424627,0.00013699,2]
[352564748,1739170252565,-1332.2424627,0.00013699,2]
[352564749,1739170252576,-1332.2424627,0.00013699,2]
[352564750,1739170252585,-1332.2424627,0.00013699,2]
[352564751,1739170252595,-1332.2424627,0.00013699,2]
[352564752,1739170252608,-1332.2424627,0.00013699,2]
[352564753,1739170252617,-1332.2424627,0.00013699,2]
[352564754,1739170252626,-1332.2424627,0.00013699,2]
[352564755,1739170252635,-1332.2424627,0.00013699,2]
[352564756,1739170252645,-1332.2424627,0.00013699,2]
[352564757,1739170252655,-1332.2424627,0.00013699,2]
[352564758,1739170252665,-1332.2424627,0.00013699,2]
[352564759,1739170252674,-1332.2424627,0.00013699,2]
[352564760,1739170252684,-1332.2424627,0.00013699,2]
[352564761,1739170252694,-1332.2424627,0.00013699,2]
[352564762,1739170252703,-1332.2424627,0.00013699,2]
[352564763,1739170252713,-1332.2424627,0.00013699,2]
[352564764,1739170252722,-1332.2424627,0.00013699,2]
[352564765,1739170252732,-1332.2424627,0.00013699,2]
[352564766,1739170252741,-1332.2424627,0.00013699,2]
[352564767,1739170252751,-1332.2424627,0.00013699,2]
[352564768,1739170252761,-1332.2424627,0.00013699,2]
[352564769,1739170252771,-1332.2424627,0.00013699,2]
[352564770,1739170252784,-1332.24246269,0.00013699,2]
[352564771,1739170252795,-1332.24246269,0.00013699,2]
[352564772,1739170252805,-1332.24246269,0.00013699,2]
[352564773,1739170252815,-1332.24246269,0.00013699,2]
[352564774,1739170252825,-151.0,0.00013699,2]
[352564775,1739170252835,-151.238251,0.00013699,2]
[352564776,1739170252844,-151.120933,0.00013699,2]
[352564777,1739170252857,-196.141507,0.00013699,2]
[352564778,1739170252867,-151.230315,0.00013699,2]
[352564779,1739170252876,-196.141507,0.00013699,2]
[352564780,1739170252886,-151.0,0.00013699,2]
[352564781,1739170252896,-151.0,0.00013699,2]
[352564782,1739170252906,-151.0,0.00013699,2]
[352564783,1739170252916,-151.0,0.00013699,2]
[352564784,1739170252927,-888.803566,0.00013699,2]
[352564785,1739170252936,-888.803566,0.00013699,2]
[352564786,1739170252947,-151.0,0.00013699,2]
[352564787,1739170252956,-290.984725,0.00013699,2]
[352564788,1739170252966,-290.984725,0.00013699,2]
[352564789,1739170252976,-151.0,0.00013699,2]